[Event "The Kvibergspelen 2023"]
[Site "Kviberg Park Hotel & Conference, Krutvagen 2, Gothenburg, Sweden"]
[Date "2023.09.16"]
[Round "6.6"]
[White "Hansen, Lars"]
[Black "Olsson, William"]
[Result "0-1"]
[TimeControl "15 minutes + 5 seconds per move from move one (Round 1 - 4) / 90 minutes + 30 seconds per move from move one (Round 5 - 8)"]
[BlackTitle "FM"]
[WhiteFideId "1402528"]
[BlackFideId "1741721"]
[WhiteElo "2188"]
[BlackElo "2376"]

1. e4 {[%clk 01:30:04]} {[%emt 00:00:57]} c5 {[%clk 01:30:52]} {[%emt
00:00:06]} 2. Nc3 {[%clk 01:30:31]} {[%emt 00:00:04]} Nc6 {[%clk 01:31:12]}
{[%emt 00:00:10]} 3. f4 {[%clk 01:30:55]} {[%emt 00:00:07]} g6 {[%clk
01:31:31]} {[%emt 00:00:10]} 4. Nf3 {[%clk 01:31:16]} {[%emt 00:00:09]} Bg7
{[%clk 01:31:45]} {[%emt 00:00:16]} 5. Bb5 {[%clk 01:31:38]} {[%emt 00:00:08]}
Nd4 {[%clk 01:32:09]} {[%emt 00:00:06]} 6. O-O {[%clk 01:31:59]} {[%emt
00:00:08]} a6 {[%clk 01:32:35]} {[%emt 00:00:05]} 7. Bd3 {[%clk 01:32:06]}
{[%emt 00:00:22]} b5 {[%clk 01:33:01]} {[%emt 00:00:05]} 8. Nxd4 {[%clk
01:31:21]} {[%emt 00:01:15]} cxd4 {[%clk 01:33:02]} {[%emt 00:00:29]} 9. Ne2
{[%clk 01:31:45]} {[%emt 00:00:05]} Bb7 {[%clk 01:33:28]} {[%emt 00:00:05]} 10.
Qe1 {[%clk 01:28:25]} {[%emt 00:03:50]} Nh6 {[%clk 01:23:50]} {[%emt 00:10:07]}
11. b3 {[%clk 01:13:47]} {[%emt 00:15:08]} Qb6 {[%clk 01:08:08]} {[%emt
00:16:14]} 12. Bb2 {[%clk 01:03:46]} {[%emt 00:10:30]} d6 {[%clk 01:08:19]}
{[%emt 00:00:19]} 13. h3 {[%clk 01:01:08]} {[%emt 00:03:08]} e5 {[%clk
01:04:26]} {[%emt 00:04:23]} 14. Qf2 {[%clk 00:59:43]} {[%emt 00:01:53]} O-O
{[%clk 01:01:06]} {[%emt 00:03:50]} 15. f5 {[%clk 00:55:09]} {[%emt 00:05:06]}
gxf5 {[%clk 00:51:46]} {[%emt 00:09:50]} 16. exf5 {[%clk 00:54:09]} {[%emt
00:01:29]} Bf6 {[%clk 00:50:58]} {[%emt 00:01:19]} 17. Bxd4 {[%clk 00:38:19]}
{[%emt 00:16:21]} exd4 {[%clk 00:50:58]} {[%emt 00:00:30]} 18. Qf4 {[%clk
00:38:31]} {[%emt 00:00:17]} Kg7 {[%clk 00:49:16]} {[%emt 00:02:11]} 19. Ng3
{[%clk 00:37:54]} {[%emt 00:01:07]} Ng8 {[%clk 00:48:57]} {[%emt 00:00:49]} 20.
Nh5+ {[%clk 00:36:47]} {[%emt 00:01:37]} Kh8 {[%clk 00:49:25]} {[%emt
00:00:02]} 21. Nxf6 {[%clk 00:35:18]} {[%emt 00:01:59]} Nxf6 {[%clk 00:49:40]}
{[%emt 00:00:16]} 22. Qh6 {[%clk 00:34:48]} {[%emt 00:01:00]} Ng8 {[%clk
00:49:47]} {[%emt 00:00:23]} 23. Qh5 {[%clk 00:29:13]} {[%emt 00:06:04]} f6
{[%clk 00:50:00]} {[%emt 00:00:18]} 24. Rae1 {[%clk 00:29:24]} {[%emt
00:00:18]} Qc6 {[%clk 00:49:00]} {[%emt 00:01:31]} 25. Be4 {[%clk 00:27:05]}
{[%emt 00:02:48]} d5 {[%clk 00:48:39]} {[%emt 00:00:52]} 26. Bd3 {[%clk
00:27:31]} {[%emt 00:00:04]} Rae8 {[%clk 00:48:50]} {[%emt 00:00:18]} 27. Re6
{[%clk 00:27:27]} {[%emt 00:00:35]} Qd7 {[%clk 00:47:55]} {[%emt 00:01:25]} 28.
Rfe1 {[%clk 00:27:16]} {[%emt 00:00:40]} Re7 {[%clk 00:45:40]} {[%emt
00:02:45]} 29. Qh4 {[%clk 00:13:06]} {[%emt 00:14:40]} Rfe8 {[%clk 00:44:24]}
{[%emt 00:01:47]} 30. Kf2 {[%clk 00:11:32]} {[%emt 00:02:03]} Bc8 {[%clk
00:41:11]} {[%emt 00:03:43]} 31. Qxd4 {[%clk 00:08:58]} {[%emt 00:03:05]} Rxe6
{[%clk 00:38:46]} {[%emt 00:02:55]} 32. fxe6 {[%clk 00:09:22]} {[%emt
00:00:06]} Qg7 {[%clk 00:38:20]} {[%emt 00:00:56]} 33. Qb6 {[%clk 00:04:23]}
{[%emt 00:05:29]} Ne7 {[%clk 00:35:24]} {[%emt 00:03:26]} 34. Re3 {[%clk
00:03:21]} {[%emt 00:01:32]} Rg8 {[%clk 00:35:41]} {[%emt 00:00:13]} 35. g4
{[%clk 00:03:27]} {[%emt 00:00:24]} f5 {[%clk 00:32:44]} {[%emt 00:03:27]} 36.
Rf3 {[%clk 00:03:01]} {[%emt 00:00:56]} fxg4 {[%clk 00:32:57]} {[%emt
00:00:17]} 37. Rf7 {[%clk 00:01:38]} {[%emt 00:01:53]} Rf8 {[%clk 00:33:23]}
{[%emt 00:00:03]} 38. Ke1 {[%clk 00:01:08]} {[%emt 00:01:01]} Rxf7 {[%clk
00:33:35]} {[%emt 00:00:17]} 39. exf7 {[%clk 00:01:34]} {[%emt 00:00:05]} Qxf7
{[%clk 00:34:00]} {[%emt 00:00:05]} 40. Qd4+ {[%clk 00:01:15]} {[%emt
00:00:48]} Qg7 {[%clk 00:34:03]} {[%emt 00:00:27]} 0-1

[Event "The Kvibergspelen 2023"]
[Site "Kviberg Park Hotel & Conference, Krutvagen 2, Gothenburg, Sweden"]
[Date "2023.09.16"]
[Round "6.7"]
[White "Reimanis, Ritvars"]
[Black "Jogstad, Daniel"]
[Result "1/2-1/2"]
[TimeControl "15 minutes + 5 seconds per move from move one (Round 1 - 4) / 90 minutes + 30 seconds per move from move one (Round 5 - 8)"]
[WhiteTitle "IM"]
[BlackTitle "CM"]
[WhiteFideId "11602988"]
[BlackFideId "1718959"]
[WhiteElo "2361"]
[BlackElo "2137"]

1. d4 {[%clk 01:29:16]} {[%emt 00:01:43]} d5 {[%clk 01:30:32]} {[%emt
00:00:28]} 2. Nf3 {[%clk 01:29:40]} {[%emt 00:00:06]} Nf6 {[%clk 01:30:51]}
{[%emt 00:00:11]} 3. c4 {[%clk 01:30:04]} {[%emt 00:00:07]} c6 {[%clk
01:31:17]} {[%emt 00:00:03]} 4. Nc3 {[%clk 01:30:21]} {[%emt 00:00:12]} e6
{[%clk 01:30:22]} {[%emt 00:01:26]} 5. Bg5 {[%clk 01:30:45]} {[%emt 00:00:05]}
Nbd7 {[%clk 01:30:42]} {[%emt 00:00:10]} 6. e3 {[%clk 01:31:10]} {[%emt
00:00:06]} Qa5 {[%clk 01:31:07]} {[%emt 00:00:05]} 7. cxd5 {[%clk 01:31:32]}
{[%emt 00:00:08]} Nxd5 {[%clk 01:31:32]} {[%emt 00:00:05]} 8. Rc1 {[%clk
01:31:57]} {[%emt 00:00:06]} Nxc3 {[%clk 01:31:48]} {[%emt 00:00:13]} 9. bxc3
{[%clk 01:32:23]} {[%emt 00:00:04]} Ba3 {[%clk 01:32:13]} {[%emt 00:00:05]} 10.
Rc2 {[%clk 01:32:49]} {[%emt 00:00:04]} b6 {[%clk 01:32:39]} {[%emt 00:00:04]}
11. Be2 {[%clk 01:33:15]} {[%emt 00:00:04]} Ba6 {[%clk 01:32:44]} {[%emt
00:00:25]} 12. O-O {[%clk 01:33:38]} {[%emt 00:00:06]} Bxe2 {[%clk 01:33:03]}
{[%emt 00:00:12]} 13. Qxe2 {[%clk 01:34:03]} {[%emt 00:00:05]} O-O {[%clk
01:32:43]} {[%emt 00:00:50]} 14. e4 {[%clk 01:33:46]} {[%emt 00:00:47]} Rfe8
{[%clk 01:25:44]} {[%emt 00:07:29]} 15. e5 {[%clk 01:33:55]} {[%emt 00:00:21]}
Bf8 {[%clk 01:12:42]} {[%emt 00:13:32]} 16. Rd1 {[%clk 01:33:45]} {[%emt
00:00:41]} Rac8 {[%clk 01:09:59]} {[%emt 00:03:12]} 17. c4 {[%clk 01:33:53]}
{[%emt 00:00:22]} h6 {[%clk 00:47:16]} {[%emt 00:23:13]} 18. Bh4 {[%clk
01:29:47]} {[%emt 00:04:36]} Qa4 {[%clk 00:44:00]} {[%emt 00:03:46]} 19. Rc3
{[%clk 01:23:25]} {[%emt 00:06:52]} c5 {[%clk 00:44:07]} {[%emt 00:00:22]} 20.
d5 {[%clk 01:23:40]} {[%emt 00:00:16]} exd5 {[%clk 00:44:31]} {[%emt 00:00:06]}
21. Rxd5 {[%clk 01:24:05]} {[%emt 00:00:04]} Nb8 {[%clk 00:43:51]} {[%emt
00:01:11]} 22. Re3 {[%clk 01:10:53]} {[%emt 00:13:43]} Re6 {[%clk 00:37:26]}
{[%emt 00:06:53]} 23. Ne1 {[%clk 01:01:55]} {[%emt 00:09:28]} Nc6 {[%clk
00:37:48]} {[%emt 00:00:09]} 24. f4 {[%clk 01:02:16]} {[%emt 00:00:08]} Nd4
{[%clk 00:38:04]} {[%emt 00:00:15]} 25. Qd3 {[%clk 01:02:38]} {[%emt 00:00:08]}
Qxa2 {[%clk 00:36:14]} {[%emt 00:02:20]} 26. Rd7 {[%clk 00:55:30]} {[%emt
00:07:38]} Rce8 {[%clk 00:30:42]} {[%emt 00:06:02]} 27. Nf3 {[%clk 00:51:28]}
{[%emt 00:04:32]} Nxf3+ {[%clk 00:30:05]} {[%emt 00:01:07]} 28. Rxf3 {[%clk
00:51:55]} {[%emt 00:00:02]} b5 {[%clk 00:28:21]} {[%emt 00:02:15]} 29. cxb5
{[%clk 00:51:30]} {[%emt 00:00:55]} c4 {[%clk 00:28:36]} {[%emt 00:00:15]} 30.
Qd5 {[%clk 00:51:41]} {[%emt 00:00:19]} a6 {[%clk 00:23:52]} {[%emt 00:05:13]}
31. bxa6 {[%clk 00:48:00]} {[%emt 00:04:11]} Qxa6 {[%clk 00:24:19]} {[%emt
00:00:04]} 32. Be1 {[%clk 00:45:26]} {[%emt 00:03:04]} Qc6 {[%clk 00:23:19]}
{[%emt 00:01:30]} 33. Bc3 {[%clk 00:44:40]} {[%emt 00:01:16]} Rb8 {[%clk
00:20:22]} {[%emt 00:03:26]} 34. Qxc6 {[%clk 00:43:18]} {[%emt 00:01:53]} Rxc6
{[%clk 00:18:48]} {[%emt 00:02:04]} 35. Kf2 {[%clk 00:43:27]} {[%emt 00:00:20]}
Bb4 {[%clk 00:17:50]} {[%emt 00:01:29]} 1/2-1/2

[Event "The Kvibergspelen 2023"]
[Site "Kviberg Park Hotel & Conference, Krutvagen 2, Gothenburg, Sweden"]
[Date "2023.09.16"]
[Round "6.8"]
[White "Joensson, Oscar"]
[Black "Jacobsen, Mikkel Manosri"]
[Result "0-1"]
[TimeControl "15 minutes + 5 seconds per move from move one (Round 1 - 4) / 90 minutes + 30 seconds per move from move one (Round 5 - 8)"]
[BlackTitle "FM"]
[WhiteFideId "1729977"]
[BlackFideId "1444514"]
[WhiteElo "2060"]
[BlackElo "2313"]

1. d4 {[%clk 01:30:57]} {[%emt 00:00:02]} d5 {[%clk 01:30:35]} {[%emt
00:00:20]} 2. c4 {[%clk 01:31:21]} {[%emt 00:00:11]} e6 {[%clk 01:31:03]}
{[%emt 00:00:03]} 3. Nf3 {[%clk 01:31:43]} {[%emt 00:00:07]} a6 {[%clk
01:31:27]} {[%emt 00:00:07]} 4. g3 {[%clk 01:29:25]} {[%emt 00:02:48]} dxc4
{[%clk 01:31:27]} {[%emt 00:00:29]} 5. Bg2 {[%clk 01:24:45]} {[%emt 00:05:10]}
Nc6 {[%clk 01:31:52]} {[%emt 00:00:06]} 6. O-O {[%clk 01:22:12]} {[%emt
00:03:02]} Rb8 {[%clk 01:32:19]} {[%emt 00:00:03]} 7. e4 {[%clk 01:09:44]}
{[%emt 00:12:59]} Be7 {[%clk 01:32:06]} {[%emt 00:00:43]} 8. d5 {[%clk
01:04:42]} {[%emt 00:05:31]} exd5 {[%clk 01:30:51]} {[%emt 00:01:46]} 9. exd5
{[%clk 01:05:06]} {[%emt 00:00:06]} Nb4 {[%clk 01:30:43]} {[%emt 00:00:38]} 10.
Ne5 {[%clk 01:04:31]} {[%emt 00:01:04]} Nf6 {[%clk 01:30:08]} {[%emt 00:01:06]}
11. Nc3 {[%clk 01:04:07]} {[%emt 00:00:53]} Bf5 {[%clk 01:29:06]} {[%emt
00:01:33]} 12. a3 {[%clk 00:58:47]} {[%emt 00:05:50]} Nd3 {[%clk 01:25:52]}
{[%emt 00:03:43]} 13. Nxc4 {[%clk 00:56:23]} {[%emt 00:02:55]} Nxc1 {[%clk
01:24:39]} {[%emt 00:01:43]} 14. Rxc1 {[%clk 00:56:18]} {[%emt 00:00:34]} O-O
{[%clk 01:24:35]} {[%emt 00:00:35]} 15. Qd4 {[%clk 00:53:06]} {[%emt 00:03:41]}
Ne8 {[%clk 01:11:23]} {[%emt 00:13:42]} 16. Ne4 {[%clk 00:46:02]} {[%emt
00:07:35]} Nd6 {[%clk 01:02:12]} {[%emt 00:09:41]} 17. Ncxd6 {[%clk 00:37:37]}
{[%emt 00:08:54]} cxd6 {[%clk 01:02:04]} {[%emt 00:00:38]} 18. Rc4 {[%clk
00:34:52]} {[%emt 00:03:16]} Bd7 {[%clk 01:01:55]} {[%emt 00:00:39]} 19. Rfc1
{[%clk 00:34:04]} {[%emt 00:01:17]} f5 {[%clk 00:58:57]} {[%emt 00:03:27]} 20.
Nd2 {[%clk 00:25:39]} {[%emt 00:08:56]} Bf6 {[%clk 00:58:22]} {[%emt 00:01:06]}
21. Qa7 {[%clk 00:25:28]} {[%emt 00:00:40]} Bxb2 {[%clk 00:57:56]} {[%emt
00:00:57]} 22. Rb1 {[%clk 00:25:53]} {[%emt 00:00:04]} b5 {[%clk 00:54:59]}
{[%emt 00:03:27]} 23. Rc2 {[%clk 00:19:25]} {[%emt 00:06:59]} Bxa3 {[%clk
00:50:31]} {[%emt 00:04:57]} 24. Qxa6 {[%clk 00:19:23]} {[%emt 00:00:33]} Ra8
{[%clk 00:50:49]} {[%emt 00:00:12]} 25. Qb7 {[%clk 00:18:05]} {[%emt 00:01:48]}
Bc5 {[%clk 00:51:09]} {[%emt 00:00:10]} 26. Nb3 {[%clk 00:16:23]} {[%emt
00:02:12]} Ra7 {[%clk 00:51:20]} {[%emt 00:00:18]} 27. Nxc5 {[%clk 00:15:02]}
{[%emt 00:01:52]} Rxb7 {[%clk 00:51:44]} {[%emt 00:00:06]} 28. Nxb7 {[%clk
00:15:26]} {[%emt 00:00:05]} Qb6 {[%clk 00:52:06]} {[%emt 00:00:08]} 29. Rbc1
{[%clk 00:14:23]} {[%emt 00:01:34]} Rb8 {[%clk 00:52:28]} {[%emt 00:00:07]} 30.
Rc6 {[%clk 00:14:42]} {[%emt 00:00:11]} Qxb7 {[%clk 00:42:29]} {[%emt
00:10:29]} 31. Rc7 {[%clk 00:14:59]} {[%emt 00:00:12]} Qb6 {[%clk 00:42:06]}
{[%emt 00:00:54]} 32. Rxd7 {[%clk 00:15:21]} {[%emt 00:00:09]} b4 {[%clk
00:42:29]} {[%emt 00:00:07]} 33. Rcc7 {[%clk 00:14:47]} {[%emt 00:01:04]} Qd4
{[%clk 00:42:29]} {[%emt 00:00:29]} 34. Bh3 {[%clk 00:07:54]} {[%emt 00:07:22]}
b3 {[%clk 00:39:06]} {[%emt 00:03:54]} 35. Bxf5 {[%clk 00:07:12]} {[%emt
00:01:11]} Qd1+ {[%clk 00:39:21]} {[%emt 00:00:16]} 0-1

[Event "The Kvibergspelen 2023"]
[Site "Kviberg Park Hotel & Conference, Krutvagen 2, Gothenburg, Sweden"]
[Date "2023.09.16"]
[Round "6.9"]
[White "Poley, Vladimir"]
[Black "Stenman, Christoffer"]
[Result "1-0"]
[TimeControl "15 minutes + 5 seconds per move from move one (Round 1 - 4) / 90 minutes + 30 seconds per move from move one (Round 5 - 8)"]
[WhiteTitle "IM"]
[WhiteFideId "13500090"]
[BlackFideId "1713604"]
[WhiteElo "2284"]
[BlackElo "1896"]

1. b4 {[%clk 01:30:27]} {[%emt 00:00:33]} c6 {[%clk 01:29:13]} {[%emt
00:01:47]} 2. e3 {[%clk 01:30:45]} {[%emt 00:00:11]} Nf6 {[%clk 01:28:47]}
{[%emt 00:00:57]} 3. Nf3 {[%clk 01:30:38]} {[%emt 00:00:36]} d5 {[%clk
01:22:06]} {[%emt 00:07:12]} 4. Bb2 {[%clk 01:29:54]} {[%emt 00:01:13]} Bg4
{[%clk 01:19:12]} {[%emt 00:03:24]} 5. h3 {[%clk 01:29:15]} {[%emt 00:01:10]}
Bxf3 {[%clk 01:18:17]} {[%emt 00:01:25]} 6. Qxf3 {[%clk 01:29:32]} {[%emt
00:00:13]} Nbd7 {[%clk 01:16:41]} {[%emt 00:02:06]} 7. c4 {[%clk 01:28:49]}
{[%emt 00:01:13]} e6 {[%clk 01:15:30]} {[%emt 00:01:41]} 8. b5 {[%clk
01:28:13]} {[%emt 00:01:06]} Be7 {[%clk 01:13:16]} {[%emt 00:02:43]} 9. Be2
{[%clk 01:18:44]} {[%emt 00:09:59]} O-O {[%clk 01:09:42]} {[%emt 00:04:06]} 10.
O-O {[%clk 01:18:23]} {[%emt 00:00:50]} cxb5 {[%clk 01:02:03]} {[%emt
00:08:09]} 11. cxd5 {[%clk 01:17:14]} {[%emt 00:01:39]} Nxd5 {[%clk 01:01:55]}
{[%emt 00:00:37]} 12. e4 {[%clk 01:02:30]} {[%emt 00:15:15]} Nb4 {[%clk
00:52:04]} {[%emt 00:10:21]} 13. a3 {[%clk 00:49:41]} {[%emt 00:13:19]} Nc6
{[%clk 00:44:29]} {[%emt 00:08:04]} 14. Bxb5 {[%clk 00:49:05]} {[%emt
00:01:06]} Qb6 {[%emt 00:19:43]} 15. Nc3 {[%clk 00:36:16]} Nd4 {[%clk
00:22:46]} {[%emt 00:16:19]} 16. Qg3 {[%clk 00:34:42]} {[%emt 00:02:04]} Nf6
{[%clk 00:18:03]} {[%emt 00:05:14]} 17. e5 {[%clk 00:25:54]} {[%emt 00:09:17]}
Qxb5 {[%clk 00:07:11]} {[%emt 00:11:23]} 18. Nxb5 {[%clk 00:21:23]} {[%emt
00:05:02]} Ne2+ {[%clk 00:07:35]} {[%emt 00:00:05]} 19. Kh2 {[%clk 00:21:36]}
{[%emt 00:00:16]} Nxg3 {[%clk 00:07:58]} {[%emt 00:00:07]} 20. fxg3 {[%clk
00:21:39]} {[%emt 00:00:27]} Ne4 {[%clk 00:07:08]} {[%emt 00:01:20]} 21. d3
{[%clk 00:12:50]} {[%emt 00:09:20]} Nc5 {[%clk 00:07:20]} {[%emt 00:00:17]} 22.
Rf3 {[%clk 00:07:48]} {[%emt 00:05:33]} Na4 {[%clk 00:03:04]} {[%emt 00:04:45]}
23. Bc1 {[%clk 00:06:15]} {[%emt 00:02:03]} a6 {[%clk 00:02:03]} {[%emt
00:01:32]} 24. Nd4 {[%clk 00:06:32]} {[%emt 00:00:12]} Rac8 {[%clk 00:01:54]}
{[%emt 00:00:39]} 25. Bd2 {[%clk 00:06:32]} {[%emt 00:00:30]} Rfd8 {[%clk
00:01:57]} {[%emt 00:00:27]} 26. Nb3 {[%clk 00:06:40]} {[%emt 00:00:21]} Rc2
{[%clk 00:01:16]} {[%emt 00:01:11]} 27. Raf1 {[%clk 00:03:17]} {[%emt
00:03:55]} Rf8 {[%clk 00:00:55]} {[%emt 00:00:50]} 28. Bb4 {[%clk 00:03:12]}
{[%emt 00:00:35]} Bxb4 {[%clk 00:01:23]} {[%emt 00:00:03]} 29. axb4 {[%clk
00:03:39]} {[%emt 00:00:03]} Rb2 {[%clk 00:01:12]} {[%emt 00:00:40]} 30. Nd4
{[%clk 00:03:46]} {[%emt 00:00:23]} f5 {[%clk 00:00:41]} {[%emt 00:01:02]} 31.
Nxe6 {[%clk 00:04:00]} {[%emt 00:00:16]} Re8 {[%clk 00:00:48]} {[%emt
00:00:23]} 32. Rxf5 {[%clk 00:04:24]} {[%emt 00:00:06]} h6 {[%clk 00:01:12]}
{[%emt 00:00:06]} 33. Rf8+ {[%clk 00:04:32]} {[%emt 00:00:21]} Rxf8 {[%clk
00:01:41]} {[%emt 00:00:02]} 34. Rxf8+ {[%clk 00:04:47]} {[%emt 00:00:14]} Kh7
{[%clk 00:02:10]} {[%emt 00:00:01]} 35. Rb8 {[%emt 00:02:21]} Re2 {[%clk
00:01:48]} 36. Nf8+ {[%clk 00:04:12]} {[%emt 00:00:07]} Kg8 {[%clk 00:02:10]}
{[%emt 00:00:06]} 37. e6 {[%clk 00:04:33]} {[%emt 00:00:10]} 1-0

[Event "The Kvibergspelen 2023"]
[Site "Kviberg Park Hotel & Conference, Krutvagen 2, Gothenburg, Sweden"]
[Date "2023.09.16"]
[Round "6.10"]
[White "Tripathi, Pratyush"]
[Black "Falkevall, Axel"]
[Result "1/2-1/2"]
[TimeControl "15 minutes + 5 seconds per move from move one (Round 1 - 4) / 90 minutes + 30 seconds per move from move one (Round 5 - 8)"]
[BlackTitle "FM"]
[WhiteFideId "1763121"]
[BlackFideId "1735560"]
[WhiteElo "1735"]
[BlackElo "2276"]

1. d4 {[%clk 01:30:21]} {[%emt 00:00:39]} Nf6 {[%clk 01:30:54]} {[%emt
00:00:06]} 2. c4 {[%clk 01:30:44]} {[%emt 00:00:07]} g6 {[%clk 01:31:20]}
{[%emt 00:00:04]} 3. Nc3 {[%clk 01:31:08]} {[%emt 00:00:07]} Bg7 {[%clk
01:31:45]} {[%emt 00:00:04]} 4. e4 {[%clk 01:31:31]} {[%emt 00:00:07]} d6
{[%clk 01:32:10]} {[%emt 00:00:05]} 5. Nf3 {[%clk 01:31:55]} {[%emt 00:00:06]}
O-O {[%clk 01:32:35]} {[%emt 00:00:05]} 6. Be2 {[%clk 01:32:22]} {[%emt
00:00:04]} Nbd7 {[%clk 01:33:00]} {[%emt 00:00:04]} 7. O-O {[%clk 01:32:44]}
{[%emt 00:00:09]} e5 {[%clk 01:33:27]} {[%emt 00:00:03]} 8. Be3 {[%clk
01:33:08]} {[%emt 00:00:05]} Qe7 {[%clk 01:33:41]} {[%emt 00:00:16]} 9. Re1
{[%emt 00:01:24]} c6 {[%clk 01:32:45]} {[%emt 00:01:25]} 10. Qc2 {[%clk
01:27:51]} {[%emt 00:04:55]} h6 {[%clk 01:32:14]} {[%emt 00:01:00]} 11. h3
{[%clk 01:27:41]} {[%emt 00:00:40]} exd4 {[%clk 01:29:11]} {[%emt 00:03:34]} 12.
Nxd4 {[%clk 01:27:30]} {[%emt 00:00:41]} Re8 {[%clk 01:27:35]} {[%emt
00:02:05]} 13. Bf3 {[%clk 01:25:13]} {[%emt 00:02:47]} Ne5 {[%clk 01:25:16]}
{[%emt 00:02:50]} 14. Be2 {[%clk 01:24:17]} {[%emt 00:01:26]} Ned7 {[%clk
01:25:34]} {[%emt 00:00:11]} 15. Bf3 {[%clk 01:24:39]} {[%emt 00:00:08]} Nc5
{[%clk 01:22:26]} {[%emt 00:03:39]} 16. Bf4 {[%clk 01:24:05]} {[%emt 00:01:04]}
Nfd7 {[%clk 01:20:06]} {[%emt 00:02:49]} 17. Qd2 {[%clk 01:15:28]} {[%emt
00:09:08]} Ne5 {[%clk 01:13:25]} {[%emt 00:07:10]} 18. Be2 {[%clk 01:15:32]}
{[%emt 00:00:26]} Kh7 {[%clk 01:08:34]} {[%emt 00:05:21]} 19. Rad1 {[%clk
01:09:41]} {[%emt 00:06:21]} a5 {[%clk 01:03:30]} {[%emt 00:05:34]} 20. Be3
{[%clk 01:01:27]} {[%emt 00:08:45]} Ned7 {[%clk 00:54:37]} {[%emt 00:09:23]} 21.
Bf3 {[%clk 00:58:41]} {[%emt 00:03:16]} Qh4 {[%clk 00:51:32]} {[%emt 00:03:34]}
22. Nb3 {[%clk 00:50:59]} {[%emt 00:08:13]} Ne6 {[%clk 00:47:58]} {[%emt
00:04:04]} 23. Qxd6 {[%clk 00:46:09]} {[%emt 00:05:20]} Ne5 {[%clk 00:36:23]}
{[%emt 00:12:05]} 24. Be2 {[%clk 00:42:51]} {[%emt 00:03:48]} Rd8 {[%clk
00:35:35]} {[%emt 00:01:17]} 25. Qa3 {[%clk 00:43:01]} {[%emt 00:00:20]} Rxd1
{[%clk 00:34:46]} {[%emt 00:01:20]} 26. Rxd1 {[%clk 00:39:49]} {[%emt
00:03:42]} Ng5 {[%clk 00:33:23]} {[%emt 00:01:53]} 27. Nd2 {[%clk 00:34:14]}
{[%emt 00:06:05]} Be6 {[%clk 00:20:55]} {[%emt 00:12:57]} 28. Qa4 {[%clk
00:27:29]} {[%emt 00:07:16]} Rd8 {[%clk 00:13:38]} {[%emt 00:07:47]} 29. Qxa5
{[%clk 00:24:29]} {[%emt 00:03:30]} Rd7 {[%clk 00:03:45]} {[%emt 00:10:22]} 30.
Qa4 {[%clk 00:19:29]} {[%emt 00:05:31]} Nd3 {[%clk 00:03:00]} {[%emt 00:01:15]}
31. Qc2 {[%clk 00:14:06]} {[%emt 00:05:53]} Nxf2 {[%clk 00:01:52]} {[%emt
00:01:37]} 32. Bxf2 {[%clk 00:14:07]} {[%emt 00:00:30]} Nxh3+ {[%clk 00:02:04]}
{[%emt 00:00:17]} 33. gxh3 {[%clk 00:14:02]} {[%emt 00:00:36]} Bd4 {[%clk
00:02:29]} {[%emt 00:00:05]} 34. Bxd4 {[%clk 00:10:16]} {[%emt 00:04:15]} Qg3+
{[%clk 00:02:55]} {[%emt 00:00:05]} 35. Kh1 {[%clk 00:10:41]} {[%emt 00:00:05]}
Qxh3+ {[%clk 00:03:20]} {[%emt 00:00:05]} 36. Kg1 {[%clk 00:11:05]} {[%emt
00:00:06]} 1/2-1/2